[Event "Early-Titled-Tuesday-Blitz-January-30-2024"]
[Site "Chess.com"]
[Date "2024.01.30"]
[Round "11"]
[White "DavidGavrilescu18"]
[Black "hakanazeri2"]
[Result "0-1"]
[WhiteElo "2776"]
[BlackElo "2633"]
[TimeControl "180+1"]
[EndTime "10:15:19 PST"]
[Termination "hakanazeri2 won by checkmate"]

1. Nf3 {[%clk 0:03:00.9]} 1... d5 {[%clk 0:02:59.1]} 2. Rg1 {[%clk 0:03:00.5]}
2... Nc6 {[%clk 0:02:43.2]} 3. d4 {[%clk 0:02:56.3]} 3... Bg4 {[%clk 0:02:42.6]}
4. c4 {[%clk 0:02:50.7]} 4... e6 {[%clk 0:02:15.9]} 5. Nc3 {[%clk 0:02:48.4]}
5... Nf6 {[%clk 0:02:15.2]} 6. h3 {[%clk 0:02:47.8]} 6... Bh5 {[%clk 0:01:59.3]}
7. g4 {[%clk 0:02:45.8]} 7... Bg6 {[%clk 0:01:54.7]} 8. h4 {[%clk 0:02:43.4]}
8... Nb4 {[%clk 0:01:52]} 9. h5 {[%clk 0:02:36.7]} 9... Bc2 {[%clk 0:01:39.8]}
10. Qd2 {[%clk 0:02:36.2]} 10... Ne4 {[%clk 0:01:37.8]} 11. Qe3 {[%clk
0:02:28.6]} 11... Ba4 {[%clk 0:01:22.2]} 12. Qf4 {[%clk 0:02:17.6]} 12... Nc2+
{[%clk 0:01:10.1]} 13. Kd1 {[%clk 0:02:18]} 13... Ne3+ {[%clk 0:00:54.2]} 14.
Ke1 {[%clk 0:02:18]} 14... Nc2+ {[%clk 0:00:54.9]} 15. Kd1 {[%clk 0:02:18.5]}
15... Nxc3+ {[%clk 0:00:55.6]} 16. bxc3 {[%clk 0:02:18.5]} 16... Nxa1+ {[%clk
0:00:56.3]} 17. Kd2 {[%clk 0:02:19.1]} 17... Bd6 {[%clk 0:00:50.9]} 18. Qe3
{[%clk 0:02:19.4]} 18... Qe7 {[%clk 0:00:32.5]} 19. c5 {[%clk 0:02:18.1]} 19...
Nc2 {[%clk 0:00:30.5]} 20. Qd3 {[%clk 0:02:17.2]} 20... Bf4+ {[%clk 0:00:25]}
21. e3 {[%clk 0:02:17.7]} 21... Bg5 {[%clk 0:00:22.7]} 22. c6 {[%clk 0:02:06.5]}
22... bxc6 {[%clk 0:00:22]} 23. Qa6 {[%clk 0:02:06.5]} 23... Qf6 {[%clk
0:00:14.9]} 24. Be2 {[%clk 0:02:01.2]} 24... Bb5 {[%clk 0:00:11.9]} 25. Bxb5
{[%clk 0:02:01.3]} 25... cxb5 {[%clk 0:00:10.9]} 26. Rg3 {[%clk 0:01:58]} 26...
O-O {[%clk 0:00:10.2]} 27. Kxc2 {[%clk 0:01:55.3]} 27... Bh4 {[%clk 0:00:10.4]}
28. Rh3 {[%clk 0:01:55.8]} 28... Bxf2 {[%clk 0:00:10.6]} 29. e4 {[%clk
0:01:54.5]} 29... dxe4 {[%clk 0:00:07.9]} 30. Bg5 {[%clk 0:01:55]} 30... Qxf3
{[%clk 0:00:08.5]} 31. Rxf3 {[%clk 0:01:55.1]} 31... exf3 {[%clk 0:00:09.4]} 32.
Qc6 {[%clk 0:01:54.6]} 32... f6 {[%clk 0:00:06.4]} 33. Bd2 {[%clk 0:01:50.9]}
33... b4 {[%clk 0:00:04.6]} 34. Qxf3 {[%clk 0:01:50.7]} 34... bxc3 {[%clk
0:00:05.1]} 35. Bxc3 {[%clk 0:01:50.9]} 35... Bh4 {[%clk 0:00:05.3]} 36. Qc6
{[%clk 0:01:48.6]} 36... Rfe8 {[%clk 0:00:03.3]} 37. Kd3 {[%clk 0:01:48.4]}
37... Bg5 {[%clk 0:00:02.9]} 38. Qxc7 {[%clk 0:01:45.9]} 38... f5 {[%clk
0:00:03]} 39. gxf5 {[%clk 0:01:44.4]} 39... exf5 {[%clk 0:00:03.3]} 40. d5
{[%clk 0:01:45]} 40... Re7 {[%clk 0:00:03.8]} 41. Qc4 {[%clk 0:01:42.3]} 41...
Rd8 {[%clk 0:00:03.2]} 42. d6+ {[%clk 0:01:40.1]} 42... Rf7 {[%clk 0:00:03.9]}
43. Be5 {[%clk 0:01:39.6]} 43... Bf6 {[%clk 0:00:02.3]} 44. Bxf6 {[%clk
0:01:30.3]} 44... gxf6 {[%clk 0:00:02.4]} 45. Qe6 {[%clk 0:01:29.5]} 45... Kg7
{[%clk 0:00:02.7]} 46. Ke3 {[%clk 0:01:19.4]} 46... Rfd7 {[%clk 0:00:03.4]} 47.
h6+ {[%clk 0:01:19.9]} 47... Kg6 {[%clk 0:00:03.6]} 48. Kf4 {[%clk 0:01:20]}
48... Rxd6 {[%clk 0:00:04]} 49. Qxf5+ {[%clk 0:00:59.9]} 49... Kxh6 {[%clk
0:00:04.3]} 50. Qh3+ {[%clk 0:00:59.4]} 50... Kg7 {[%clk 0:00:05]} 51. Qg2+
{[%clk 0:00:58.1]} 51... Kf8 {[%clk 0:00:05.4]} 52. Qb7 {[%clk 0:00:51.9]} 52...
R8d7 {[%clk 0:00:05.4]} 53. Qc8+ {[%clk 0:00:51.1]} 53... Kg7 {[%clk 0:00:06.1]}
54. Qc1 {[%clk 0:00:40.6]} 54... Rd4+ {[%clk 0:00:06.3]} 55. Kf3 {[%clk
0:00:38.6]} 55... Rd3+ {[%clk 0:00:06.7]} 56. Kf4 {[%clk 0:00:39.1]} 56... R7d4+
{[%clk 0:00:06.7]} 57. Kf5 {[%clk 0:00:39.6]} 57... Rf3+ {[%clk 0:00:06.8]} 58.
Ke6 {[%clk 0:00:39.1]} 58... Re4+ {[%clk 0:00:04.7]} 59. Kd5 {[%clk 0:00:39]}
59... Re5+ {[%clk 0:00:04.8]} 60. Kd4 {[%clk 0:00:39.6]} 60... Rfe3 {[%clk
0:00:03]} 61. Qg1+ {[%clk 0:00:36.6]} 61... Kf7 {[%clk 0:00:03.2]} 62. Qh1
{[%clk 0:00:36.8]} 62... R3e4+ {[%clk 0:00:03.1]} 63. Kd3 {[%clk 0:00:37.5]}
63... h5 {[%clk 0:00:03.1]} 64. Qb1 {[%clk 0:00:35.9]} 64... a5 {[%clk
0:00:03.2]} 65. Qb7+ {[%clk 0:00:35.4]} 65... Kg6 {[%clk 0:00:03.9]} 66. Qa8
{[%clk 0:00:35.4]} 66... h4 {[%clk 0:00:03.8]} 67. Qg8+ {[%clk 0:00:34.6]} 67...
Kh5 {[%clk 0:00:04.1]} 68. Qh7+ {[%clk 0:00:31.2]} 68... Kg5 {[%clk 0:00:04.4]}
69. Qg7+ {[%clk 0:00:31.6]} 69... Kf5 {[%clk 0:00:05.1]} 70. Qh7+ {[%clk
0:00:31.5]} 70... Kg4 {[%clk 0:00:04.4]} 71. Qg6+ {[%clk 0:00:32]} 71... Kh3
{[%clk 0:00:03.7]} 72. Qxf6 {[%clk 0:00:32.5]} 72... Re3+ {[%clk 0:00:04.3]} 73.
Kd4 {[%clk 0:00:32.8]} 73... R5e4+ {[%clk 0:00:04.4]} 74. Kd5 {[%clk 0:00:33.4]}
74... Rg4 {[%clk 0:00:04.4]} 75. Qf1+ {[%clk 0:00:32.9]} 75... Rg2 {[%clk
0:00:02.3]} 76. Kd4 {[%clk 0:00:32.8]} 76... Rg3 {[%clk 0:00:02.2]} 77. Qf6
{[%clk 0:00:23]} 77... a4 {[%clk 0:00:01.1]} 78. Kc5 {[%clk 0:00:19]} 78... a3
{[%clk 0:00:02]} 79. Kb4 {[%clk 0:00:18.7]} 79... Rxa2 {[%clk 0:00:02.3]} 80.
Qe6+ {[%clk 0:00:18.9]} 80... Rg4+ {[%clk 0:00:02.6]} 81. Kb3 {[%clk 0:00:17.9]}
81... Rg2 {[%clk 0:00:02.8]} 82. Kxa3 {[%clk 0:00:18.2]} 82... Kh2 {[%clk
0:00:02.1]} 83. Qe5+ {[%clk 0:00:17.7]} 83... R4g3+ {[%clk 0:00:02.7]} 84. Kb4
{[%clk 0:00:17.9]} 84... h3 {[%clk 0:00:03.6]} 85. Kc5 {[%clk 0:00:16.5]} 85...
Rf2 {[%clk 0:00:04]} 86. Kd6 {[%clk 0:00:15.9]} 86... Kg2 {[%clk 0:00:04.3]} 87.
Qe4+ {[%clk 0:00:16]} 87... Rgf3 {[%clk 0:00:02.9]} 88. Qg4+ {[%clk 0:00:16.3]}
88... Kf1 {[%clk 0:00:03.4]} 89. Qc4+ {[%clk 0:00:16.1]} 89... Kg1 {[%clk
0:00:03.9]} 90. Qg4+ {[%clk 0:00:16.2]} 90... Kh1 {[%clk 0:00:04.4]} 91. Qe4
{[%clk 0:00:07.9]} 91... h2 {[%clk 0:00:04]} 92. Qe1+ {[%clk 0:00:07.9]} 92...
Kg2 {[%clk 0:00:04.3]} 93. Qe4 {[%clk 0:00:05.2]} 93... h1=Q {[%clk 0:00:04.7]}
94. Qg4+ {[%clk 0:00:05.8]} 94... Kf1 {[%clk 0:00:03.9]} 95. Qc4+ {[%clk
0:00:05.8]} 95... Re2 {[%clk 0:00:04.5]} 96. Qc1+ {[%clk 0:00:05.6]} 96... Kg2
{[%clk 0:00:05]} 97. Qg5+ {[%clk 0:00:06.4]} 97... Kf2 {[%clk 0:00:04.2]} 98.
Qc5+ {[%clk 0:00:05.4]} 98... Rfe3 {[%clk 0:00:04.7]} 99. Qf5+ {[%clk
0:00:04.6]} 99... Qf3 {[%clk 0:00:05.3]} 100. Qg5 {[%clk 0:00:04.6]} 100... Rd3+
{[%clk 0:00:03.1]} 101. Kc5 {[%clk 0:00:04.1]} 101... Qe3+ {[%clk 0:00:03.1]}
102. Qxe3+ {[%clk 0:00:02.4]} 102... Rexe3 {[%clk 0:00:04]} 103. Kc4 {[%clk
0:00:03.2]} 103... Ke2 {[%clk 0:00:04.9]} 104. Kb4 {[%clk 0:00:03.6]} 104... Kd2
{[%clk 0:00:05.8]} 105. Kc4 {[%clk 0:00:04.5]} 105... Kc2 {[%clk 0:00:06.3]}
106. Kb4 {[%clk 0:00:05.4]} 106... Re4+ {[%clk 0:00:06.7]} 107. Kc5 {[%clk
0:00:05.8]} 107... Kc3 {[%clk 0:00:07.6]} 108. Kb5 {[%clk 0:00:06.3]} 108...
Rd5+ {[%clk 0:00:05.3]} 109. Kc6 {[%clk 0:00:07.2]} 109... Kc4 {[%clk
0:00:06.1]} 110. Kb6 {[%clk 0:00:07.6]} 110... Re6+ {[%clk 0:00:06.5]} 111. Kc7
{[%clk 0:00:08.5]} 111... Rh5 {[%clk 0:00:06.5]} 112. Kb7 {[%clk 0:00:09.4]}
112... Rh7+ {[%clk 0:00:06]} 113. Kc8 {[%clk 0:00:10.1]} 113... Re8# {[%clk
0:00:04.2]} 0-1

[Event "Early-Titled-Tuesday-Blitz-January-30-2024"]
[Site "Chess.com"]
[Date "2024.01.30"]
[Round "11"]
[White "Jospem"]
[Black "amintabatabaei"]
[Result "1/2-1/2"]
[WhiteElo "3067"]
[BlackElo "2959"]
[TimeControl "180+1"]
[EndTime "10:16:08 PST"]
[Termination "Game drawn by 50-move rule"]

1. e4 {[%clk 0:03:00.9]} 1... e5 {[%clk 0:02:55.6]} 2. Nf3 {[%clk 0:03:01]} 2...
Nc6 {[%clk 0:02:55]} 3. Nc3 {[%clk 0:03:01.1]} 3... Nf6 {[%clk 0:02:54.5]} 4. h3
{[%clk 0:03:01.8]} 4... Bb4 {[%clk 0:02:53]} 5. a3 {[%clk 0:03:01.9]} 5... Bxc3
{[%clk 0:02:49]} 6. dxc3 {[%clk 0:03:02.8]} 6... Nxe4 {[%clk 0:02:48.5]} 7. Nxe5
{[%clk 0:03:02.5]} 7... Nxe5 {[%clk 0:02:46.2]} 8. Qd4 {[%clk 0:03:01.6]} 8...
O-O {[%clk 0:02:43.1]} 9. Qxe4 {[%clk 0:03:01.8]} 9... d5 {[%clk 0:02:38.4]} 10.
Qa4 {[%clk 0:02:56.5]} 10... Re8 {[%clk 0:02:35.8]} 11. Be3 {[%clk 0:02:55.1]}
11... Nc4 {[%clk 0:02:26.3]} 12. Bxc4 {[%clk 0:02:50.4]} 12... dxc4 {[%clk
0:02:27.2]} 13. Qxc4 {[%clk 0:02:50.3]} 13... Bf5 {[%clk 0:02:27.1]} 14. Rd1
{[%clk 0:02:36.4]} 14... Qf6 {[%clk 0:02:25.7]} 15. Rd2 {[%clk 0:02:29.5]} 15...
Qg6 {[%clk 0:02:17.4]} 16. Kf1 {[%clk 0:01:31.1]} 16... Be4 {[%clk 0:02:01.1]}
17. Rg1 {[%clk 0:01:19.4]} 17... Rad8 {[%clk 0:02:00.5]} 18. Rxd8 {[%clk
0:01:07.8]} 18... Rxd8 {[%clk 0:02:01.4]} 19. f3 {[%clk 0:01:08.4]} 19... Rd1+
{[%clk 0:01:15.4]} 20. Kf2 {[%clk 0:00:53.8]} 20... Rxg1 {[%clk 0:01:13.7]} 21.
Kxg1 {[%clk 0:00:54.7]} 21... Bxf3 {[%clk 0:01:14.3]} 22. Qf1 {[%clk 0:00:50.1]}
22... Bd5 {[%clk 0:00:59.4]} 23. Qf2 {[%clk 0:00:49]} 23... a6 {[%clk
0:00:54.2]} 24. Bf4 {[%clk 0:00:49.5]} 24... c6 {[%clk 0:00:53.8]} 25. b3 {[%clk
0:00:50.2]} 25... h6 {[%clk 0:00:53.3]} 26. c4 {[%clk 0:00:50.5]} 26... Be4
{[%clk 0:00:53.7]} 27. c3 {[%clk 0:00:49.1]} 27... Kh7 {[%clk 0:00:44.2]} 28. c5
{[%clk 0:00:47.7]} 28... Bd5 {[%clk 0:00:42.7]} 29. b4 {[%clk 0:00:48.2]} 29...
Qe4 {[%clk 0:00:41.2]} 30. Kh2 {[%clk 0:00:38.7]} 30... g5 {[%clk 0:00:38.4]}
31. Bd6 {[%clk 0:00:29.4]} 31... f5 {[%clk 0:00:36.5]} 32. h4 {[%clk 0:00:22.8]}
32... Kg6 {[%clk 0:00:34.8]} 33. hxg5 {[%clk 0:00:22.1]} 33... hxg5 {[%clk
0:00:35.7]} 34. Qb2 {[%clk 0:00:18.5]} 34... Qh4+ {[%clk 0:00:23]} 35. Kg1
{[%clk 0:00:17.8]} 35... Qe1+ {[%clk 0:00:23.9]} 36. Kh2 {[%clk 0:00:18.1]}
36... f4 {[%clk 0:00:24.6]} 37. c4 {[%clk 0:00:17]} 37... Be4 {[%clk 0:00:24.9]}
38. Be5 {[%clk 0:00:11.9]} 38... Kf5 {[%clk 0:00:22.2]} 39. Bd4 {[%clk
0:00:12.2]} 39... Kg4 {[%clk 0:00:19.8]} 40. Qf2 {[%clk 0:00:10.9]} 40... Qd1
{[%clk 0:00:10.8]} 41. Be5 {[%clk 0:00:11.5]} 41... Kf5 {[%clk 0:00:10.2]} 42.
Bd6 {[%clk 0:00:12.1]} 42... Qg4 {[%clk 0:00:08.9]} 43. Kg1 {[%clk 0:00:12.2]}
43... Qd1+ {[%clk 0:00:09]} 44. Kh2 {[%clk 0:00:12.5]} 44... Qc1 {[%clk
0:00:06.4]} 45. Qd4 {[%clk 0:00:10]} 45... Qc2 {[%clk 0:00:05.3]} 46. Qe5+
{[%clk 0:00:09.2]} 46... Kg4 {[%clk 0:00:06]} 47. Qe6+ {[%clk 0:00:07.8]} 47...
Kh5 {[%clk 0:00:03.8]} 48. Qe8+ {[%clk 0:00:06.7]} 48... Kg4 {[%clk 0:00:03.8]}
49. Qe6+ {[%clk 0:00:07.2]} 49... Bf5 {[%clk 0:00:04.5]} 50. Qh6 {[%clk
0:00:06.9]} 50... Qd3 {[%clk 0:00:02.9]} 51. Be7 {[%clk 0:00:03.6]} 51... Qg3+
{[%clk 0:00:03]} 52. Kh1 {[%clk 0:00:04.3]} 52... Qe1+ {[%clk 0:00:03]} 53. Kh2
{[%clk 0:00:04.8]} 53... Qg3+ {[%clk 0:00:03.4]} 54. Kh1 {[%clk 0:00:05.4]}
54... Qh4+ {[%clk 0:00:04.1]} 55. Qxh4+ {[%clk 0:00:05.4]} 55... Kxh4 {[%clk
0:00:04.8]} 56. Kg1 {[%clk 0:00:05.7]} 56... Bd3 {[%clk 0:00:04.4]} 57. Kf2
{[%clk 0:00:06.3]} 57... Bxc4 {[%clk 0:00:04.7]} 58. Bd6 {[%clk 0:00:07]} 58...
Kg4 {[%clk 0:00:04.8]} 59. g3 {[%clk 0:00:06.5]} 59... fxg3+ {[%clk 0:00:01.7]}
60. Bxg3 {[%clk 0:00:07.4]} 60... Kf5 {[%clk 0:00:02.2]} 61. Bc7 {[%clk
0:00:08.3]} 61... Ke4 {[%clk 0:00:02]} 62. Kg3 {[%clk 0:00:09.2]} 62... Be6
{[%clk 0:00:02.1]} 63. Bd8 {[%clk 0:00:09.9]} 63... g4 {[%clk 0:00:02.8]} 64.
Bb6 {[%clk 0:00:09.6]} 64... Kd5 {[%clk 0:00:03]} 65. Kf4 {[%clk 0:00:10.5]}
65... Kc4 {[%clk 0:00:03.7]} 66. a4 {[%clk 0:00:09.1]} 66... Kxb4 {[%clk
0:00:03.7]} 67. a5 {[%clk 0:00:09.8]} 67... Kb5 {[%clk 0:00:04.2]} 68. Kg3
{[%clk 0:00:10.7]} 68... Kc4 {[%clk 0:00:04.6]} 69. Kf4 {[%clk 0:00:11.6]} 69...
Kd5 {[%clk 0:00:05.3]} 70. Kg3 {[%clk 0:00:12.5]} 70... Ke5 {[%clk 0:00:05.9]}
71. Bc7+ {[%clk 0:00:12.8]} 71... Kf5 {[%clk 0:00:06.5]} 72. Bb6 {[%clk
0:00:13.7]} 72... Bc8 {[%clk 0:00:07.1]} 73. Bc7 {[%clk 0:00:14.2]} 73... b5
{[%clk 0:00:07.3]} 74. cxb6 {[%clk 0:00:11.5]} 74... c5 {[%clk 0:00:07.8]} 75.
Bd6 {[%clk 0:00:11.9]} 75... c4 {[%clk 0:00:07.8]} 76. Bb4 {[%clk 0:00:12.8]}
76... Ke4 {[%clk 0:00:08]} 77. b7 {[%clk 0:00:11]} 77... Bxb7 {[%clk 0:00:08.5]}
78. Kxg4 {[%clk 0:00:11.9]} 78... Kd3 {[%clk 0:00:08.9]} 79. Kf4 {[%clk
0:00:11.1]} 79... c3 {[%clk 0:00:09.3]} 80. Ba3 {[%clk 0:00:09.3]} 80... c2
{[%clk 0:00:07.4]} 81. Ke5 {[%clk 0:00:06.4]} 81... Kd2 {[%clk 0:00:07.2]} 82.
Kd4 {[%clk 0:00:03.6]} 82... c1=Q {[%clk 0:00:07.4]} 83. Bxc1+ {[%clk
0:00:04.2]} 83... Kxc1 {[%clk 0:00:08.3]} 84. Kc3 {[%clk 0:00:04]} 84... Bd5
{[%clk 0:00:06.8]} 85. Kd4 {[%clk 0:00:04.6]} 85... Bf7 {[%clk 0:00:06.2]} 86.
Kc5 {[%clk 0:00:04.8]} 86... Kb2 {[%clk 0:00:06.3]} 87. Kb4 {[%clk 0:00:05]}
87... Bb3 {[%clk 0:00:06]} 88. Kc5 {[%clk 0:00:04.7]} 88... Kc3 {[%clk
0:00:06.3]} 89. Kb6 {[%clk 0:00:03.9]} 89... Bc4 {[%clk 0:00:06.5]} 90. Kc5
{[%clk 0:00:04.8]} 90... Bd3 {[%clk 0:00:06.4]} 91. Kd5 {[%clk 0:00:05.3]} 91...
Bf1 {[%clk 0:00:06.4]} 92. Ke4 {[%clk 0:00:05.4]} 92... Kb4 {[%clk 0:00:04.8]}
93. Ke3 {[%clk 0:00:03.8]} 93... Kc3 {[%clk 0:00:05]} 94. Kf2 {[%clk 0:00:02.8]}
94... Bc4 {[%clk 0:00:04.6]} 95. Ke3 {[%clk 0:00:03.7]} 95... Bd3 {[%clk
0:00:04.9]} 96. Kf2 {[%clk 0:00:03.8]} 96... Bc4 {[%clk 0:00:04.6]} 97. Ke3
{[%clk 0:00:04.7]} 97... Bb5 {[%clk 0:00:05.3]} 98. Ke4 {[%clk 0:00:04.1]} 98...
Kb4 {[%clk 0:00:05]} 99. Ke3 {[%clk 0:00:04.3]} 99... Kb3 {[%clk 0:00:02.3]}
100. Kd2 {[%clk 0:00:04.4]} 100... Kb2 {[%clk 0:00:03]} 101. Kd1 {[%clk
0:00:05.1]} 101... Bd3 {[%clk 0:00:02.7]} 102. Kd2 {[%clk 0:00:06]} 102... Bc2
{[%clk 0:00:03.6]} 103. Ke1 {[%clk 0:00:06]} 103... Kc3 {[%clk 0:00:04.5]} 104.
Ke2 {[%clk 0:00:06.4]} 104... Bb3 {[%clk 0:00:05.2]} 105. Ke3 {[%clk 0:00:06.6]}
105... Bd1 {[%clk 0:00:05.8]} 106. Ke4 {[%clk 0:00:06.7]} 106... Bc2+ {[%clk
0:00:05]} 107. Ke3 {[%clk 0:00:07]} 107... Bf5 {[%clk 0:00:05.3]} 108. Ke2
{[%clk 0:00:07]} 108... Kc2 {[%clk 0:00:04.6]} 109. Ke3 {[%clk 0:00:07.4]}
109... Bg6 {[%clk 0:00:05.5]} 110. Ke2 {[%clk 0:00:07.7]} 110... Bh7 {[%clk
0:00:05]} 111. Ke3 {[%clk 0:00:07.8]} 111... Bd3 {[%clk 0:00:05.6]} 112. Kd4
{[%clk 0:00:08]} 112... Kd2 {[%clk 0:00:05.7]} 113. Kc5 {[%clk 0:00:07.7]}
113... Kc3 {[%clk 0:00:06.3]} 114. Kd5 {[%clk 0:00:08.3]} 114... Bc2 {[%clk
0:00:04.2]} 115. Ke5 {[%clk 0:00:06.9]} 115... Kc4 {[%clk 0:00:03.5]} 116. Kf4
{[%clk 0:00:04.3]} 116... Kd4 {[%clk 0:00:02.3]} 117. Kf3 {[%clk 0:00:04.8]}
117... Bd3 {[%clk 0:00:02.4]} 118. Kf2 {[%clk 0:00:05.5]} 118... Kc3 {[%clk
0:00:01.9]} 119. Ke1 {[%clk 0:00:06.4]} 119... Kc2 {[%clk 0:00:02.4]} 120. Kf2
{[%clk 0:00:06.8]} 120... Kd2 {[%clk 0:00:03.1]} 121. Kf3 {[%clk 0:00:07.5]}
121... Bf1 {[%clk 0:00:03.5]} 122. Ke4 {[%clk 0:00:07.8]} 122... Kc3 {[%clk
0:00:04.1]} 123. Ke3 {[%clk 0:00:08.6]} 123... Bd3 {[%clk 0:00:04.4]} 124. Kf4
{[%clk 0:00:08.6]} 124... Kb4 {[%clk 0:00:04.6]} 125. Ke3 {[%clk 0:00:09.5]}
125... Bg6 {[%clk 0:00:03.9]} 126. Kd2 {[%clk 0:00:09.7]} 126... Kb3 {[%clk
0:00:04]} 127. Kc1 {[%clk 0:00:09.6]} 127... Bf5 {[%clk 0:00:04.3]} 128. Kd2
{[%clk 0:00:10.1]} 128... Kb2 {[%clk 0:00:04.9]} 129. Ke3 {[%clk 0:00:10.8]}
129... Kc3 {[%clk 0:00:05.5]} 130. Ke2 {[%clk 0:00:11]} 130... Bc2 {[%clk
0:00:04.8]} 131. Ke3 {[%clk 0:00:11.5]} 131... Bd1 {[%clk 0:00:05.4]} 132. Ke4
{[%clk 0:00:11.2]} 132... Bh5 {[%clk 0:00:04.7]} 133. Ke3 {[%clk 0:00:11.7]}
133... Bg6 {[%clk 0:00:05.1]} 1/2-1/2